bitfinex/quotes_SOLUSD_20240612
["timestamp","ask_amount","ask_price","bid_price","bid_amount"]
[1718187099909,0.3932,153.47,153.46,22.411]
[1718187100107,0.3932,153.47,153.43,12.0571]
[1718187100305,0.3932,153.47,153.44,20.0]
[1718187100617,0.3932,153.47,153.46,2.411]
[1718187100807,0.3932,153.47,153.45,2.4111]
[1718187101016,0.3932,153.47,153.46,2.411]
[1718187101720,0.3932,153.47,153.45,2.4111]
[1718187101902,0.3932,153.47,153.46,2.411]
[1718187102103,0.3932,153.47,153.39,16.8822]
[1718187102401,26.9018,153.41,153.35,2.4127]
[1718187102595,26.9018,153.41,153.3,4.8269]
[1718187102596,0.17,153.4,153.3,4.8269]
[1718187102793,2.4123,153.38,153.32,2.4131]
[1718187102998,2.4122,153.39,153.32,2.4131]
[1718187103219,2.4123,153.38,153.32,2.4131]
[1718187103423,2.5824,153.37,153.31,2.4133]
[1718187103611,2.4124,153.37,153.31,2.4133]
[1718187103807,0.17,153.38,153.27,4.8279]
[1718187104007,2.4125,153.37,153.3,2.4134]
[1718187104602,21.7326,153.36,153.3,2.4134]
[1718187104923,21.7326,153.36,153.27,4.8279]
[1718187104924,21.7326,153.36,153.31,2.4134]
[1718187105515,6.333,153.36,153.26,12.0698]
[1718187105700,6.333,153.36,153.29,4.8272]
[1718187105901,6.333,153.36,153.33,2.413]
[1718187106716,6.333,153.36,153.32,2.4131]
[1718187107615,6.333,153.36,153.32,2.4132]
[1718187107820,6.333,153.36,153.29,20.0]
[1718187108009,6.333,153.36,153.31,2.4133]
[1718187108715,8.7457,153.36,153.29,2.4136]
[1718187109046,8.7457,153.36,153.28,20.0]
[1718187109047,2.4128,153.35,153.28,22.4138]
[1718187109219,2.4129,153.34,153.27,2.4139]
[1718187109623,2.5828,153.35,153.28,2.4138]
[1718187110349,0.17,153.35,153.29,2.4137]
[1718187111327,0.17,153.35,153.28,2.4138]
[1718187111328,2.5827,153.35,153.28,2.4138]
[1718187111537,2.4129,153.34,153.27,2.4139]
[1718187111948,2.4129,153.34,153.28,2.4138]
[1718187112228,2.5828,153.35,153.28,2.4138]
[1718187113137,2.4129,153.34,153.27,2.4139]
[1718187113519,2.5828,153.35,153.28,2.4138]
[1718187114644,2.4131,153.33,153.26,2.4141]
[1718187114817,16.259,153.32,153.26,2.4141]
[1718187115313,16.259,153.32,153.27,2.414]
[1718187115508,16.259,153.32,153.25,20.0]
[1718187115728,16.259,153.32,153.26,2.4141]
[1718187116019,0.51,153.31,153.2,9.6599]
[1718187116331,2.4136,153.3,153.24,2.4145]
[1718187116537,0.17,153.29,153.24,2.4145]
[1718187116918,40.749,153.32,153.25,2.4142]
[1718187117214,40.749,153.32,153.22,7.2443]
[1718187117215,2.7534,153.31,153.22,7.2443]
[1718187117414,0.17,153.31,153.22,7.2443]
[1718187117639,0.17,153.31,153.25,2.4143]
[1718187117823,0.17,153.31,153.24,2.4144]
[1718187118032,2.4135,153.3,153.24,2.4144]
[1718187118326,0.17,153.31,153.24,2.4144]
[1718187118527,2.4136,153.3,153.23,2.4146]
[1718187119438,2.9235,153.31,153.24,2.4145]
[1718187119638,0.17,153.31,153.25,2.4141]
[1718187119934,0.17,153.31,153.26,2.4141]
[1718187120150,0.17,153.31,153.25,2.4142]
[1718187120356,18.6723,153.32,153.25,2.4142]
[1718187120718,18.6723,153.32,153.26,2.4141]
[1718187121217,18.6723,153.32,153.25,2.4142]
[1718187121430,2.4135,153.31,153.24,2.4144]
[1718187121738,2.4135,153.31,153.25,2.4143]
[1718187121939,2.4135,153.31,153.24,2.4144]
[1718187122636,16.429,153.32,153.25,2.4143]
[1718187122941,2.5835,153.31,153.24,2.4144]
[1718187123763,2.4134,153.31,153.24,2.4144]
[1718187124530,2.4134,153.31,153.22,21.7328]
[1718187124531,18.8423,153.32,153.25,2.4142]
[1718187124737,2.4135,153.3,153.22,4.8295]
[1718187125042,2.4135,153.3,153.24,2.4144]
[1718187125242,2.4135,153.3,153.23,2.4145]
[1718187125543,6.1869,153.29,153.21,2.4149]
[1718187125747,2.4139,153.28,153.21,2.4149]
[1718187126243,2.414,153.27,153.21,2.4149]
[1718187126444,2.414,153.27,153.2,22.415]
[1718187126651,2.5842,153.26,153.2,2.415]
[1718187126835,19.0121,153.25,153.18,22.4153]
[1718187127033,16.5977,153.25,153.16,7.2472]
[1718187127357,16.5977,153.25,153.19,2.4152]
[1718187127847,16.5977,153.25,153.2,2.415]
[1718187128625,16.5977,153.25,153.21,2.4149]
[1718187129442,16.5977,153.25,153.19,2.4151]
[1718187129651,16.5977,153.25,153.18,4.8307]
[1718187129855,16.5977,153.25,153.21,2.4149]
[1718187130034,16.5977,153.25,153.18,4.8307]
[1718187130238,19.012,153.25,153.17,16.9087]
[1718187130436,2.4146,153.24,153.15,9.6635]
[1718187130637,16.5977,153.25,153.19,2.4152]
[1718187130937,16.5977,153.25,153.17,12.0779]
[1718187131272,16.5977,153.25,153.21,2.4149]
[1718187131457,16.5977,153.25,153.21,2.4148]
[1718187131648,16.5977,153.25,153.22,2.4147]
[1718187132149,16.5977,153.25,153.2,2.415]
[1718187132337,16.5977,153.25,153.19,2.4152]
[1718187132538,16.5977,153.25,153.2,2.4151]
[1718187132844,16.5977,153.25,153.19,4.8305]
[1718187133045,21.7513,153.29,153.24,2.4144]
[1718187133356,21.7393,153.33,153.27,2.414]
[1718187133538,21.7393,153.33,153.25,2.4142]
[1718187133740,2.4132,153.32,153.25,2.4142]
[1718187134646,24.1524,153.33,153.25,2.4142]
[1718187134843,2.4132,153.32,153.25,2.4142]
[1718187135046,2.4134,153.31,153.24,2.4144]
[1718187135649,2.4132,153.32,153.23,20.0]
[1718187135854,21.7393,153.33,153.28,2.4138]
[1718187136054,21.7393,153.33,153.27,2.4139]
[1718187136356,2.4132,153.32,153.26,2.4141]
[1718187136656,24.1524,153.33,153.27,2.414]
[1718187136950,21.7393,153.33,153.27,2.414]
[1718187137150,21.7393,153.33,153.23,20.0]
[1718187137342,0.34,153.32,153.17,30.9911]
[1718187137562,2.4134,153.31,153.24,2.4144]
[1718187138149,2.4137,153.29,153.22,2.4147]
[1718187138448,2.414,153.27,153.21,20.0]
[1718187138650,2.414,153.27,153.21,2.4148]
[1718187138841,2.4143,153.25,153.18,2.4154]
[1718187139045,2.4143,153.25,153.19,2.4152]
[1718187139339,2.4145,153.24,153.17,2.4155]
[1718187139661,22.5943,153.26,153.17,2.4155]
[1718187139967,22.5943,153.26,153.14,4.832]
[1718187139968,22.5943,153.26,153.15,4.8317]
[1718187140141,2.4143,153.25,153.18,2.4153]
[1718187141656,2.4143,153.25,153.19,2.4152]
[1718187141857,22.5943,153.26,153.21,2.4149]
[1718187142948,22.5943,153.26,153.17,16.9088]
[1718187142949,25.0085,153.26,153.2,2.4151]
[1718187143546,22.5943,153.26,153.21,2.4149]
[1718187143752,25.0086,153.26,153.18,20.0]
[1718187144068,2.4143,153.25,153.19,2.4152]
[1718187144240,25.0085,153.26,153.19,2.4152]
[1718187144442,22.5943,153.26,153.18,2.4154]
[1718187144768,22.5943,153.26,153.14,7.4178]
[1718187144769,2.4151,153.2,153.11,4.8329]
[1718187145058,21.8443,153.19,153.13,2.4161]
[1718187145364,21.8443,153.19,153.12,4.8327]
[1718187145546,21.8443,153.19,153.15,2.4159]
[1718187146050,4.8295,153.23,153.09,20.0]
[1718187146051,22.3633,153.23,153.13,9.6647]
[1718187146363,24.778,153.23,153.17,2.4155]
[1718187146553,22.3633,153.23,153.18,2.4153]
[1718187146747,22.3633,153.23,153.19,2.4152]
[1718187146943,22.3633,153.23,153.2,2.4151]
[1718187147268,15.8044,153.23,153.2,2.415]
[1718187147563,15.8044,153.23,153.21,2.4149]
[1718187148039,15.8044,153.23,153.18,32.077]
[1718187148040,21.5868,153.27,153.19,12.076]
[1718187148240,24.0008,153.27,153.21,2.4149]
[1718187148440,21.5868,153.27,153.23,2.4146]
[1718187148641,21.5868,153.27,153.22,2.4147]
[1718187149763,2.4144,153.25,153.19,2.4151]
[1718187150663,2.4142,153.26,153.19,2.4151]
[1718187150859,2.4142,153.26,153.2,2.4151]
[1718187154269,21.5868,153.27,153.21,2.4148]
[1718187154459,24.0009,153.27,153.21,2.4148]
[1718187154660,21.5868,153.27,153.22,2.4147]
[1718187155263,21.5868,153.27,153.23,2.4146]
[1718187155452,21.5868,153.27,153.2,57.0754]
[1718187155453,21.5868,153.27,153.22,2.4147]
[1718187155648,21.5868,153.27,153.23,2.4146]
[1718187155955,21.5868,153.27,153.24,2.4143]
[1718187157185,21.5695,153.31,153.26,2.4141]
[1718187157372,15.22,153.31,153.27,2.4139]
[1718187157762,15.22,153.31,153.28,2.4138]
[1718187157964,15.22,153.31,153.25,12.2416]
[1718187157965,15.22,153.31,153.25,4.9986]
[1718187158270,15.22,153.31,153.26,2.4141]
[1718187158683,15.22,153.31,153.27,2.4139]
[1718187158978,15.22,153.31,153.26,2.4141]
[1718187160165,15.22,153.31,153.27,2.414]
[1718187160380,15.22,153.31,153.27,2.4139]
[1718187161083,15.22,153.31,153.26,22.4141]
[1718187161785,15.22,153.31,153.26,20.0]
[1718187162079,15.22,153.31,153.26,22.414]
[1718187162474,15.22,153.31,153.26,20.0]
[1718187162674,17.6334,153.31,153.25,2.4143]
[1718187163179,17.6334,153.31,153.25,22.4143]
[1718187163380,17.6334,153.31,153.26,2.4141]
[1718187163561,15.22,153.31,153.26,2.4141]
[1718187164179,17.6334,153.31,153.26,2.4141]
[1718187164362,15.22,153.31,153.26,2.4141]
[1718187164563,17.6334,153.31,153.26,2.4141]
[1718187164879,15.22,153.31,153.26,2.4141]
[1718187165278,15.22,153.31,153.25,20.0]
[1718187165580,6.2224,153.3,153.22,7.4144]
[1718187165879,6.2224,153.3,153.27,2.4139]
[1718187166691,6.2224,153.3,153.26,2.4141]
[1718187167062,6.2224,153.3,153.26,4.8282]
[1718187167268,263.025,153.37,153.28,2.4138]
[1718187167269,6.2649,153.36,153.28,2.4138]
[1718187167474,6.2649,153.36,153.27,45.0]
[1718187167475,0.17,153.35,153.27,45.0]
[1718187167667,2.4129,153.34,153.28,2.4138]
[1718187168382,22.2415,153.33,153.21,29.6597]
[1718187168593,2.4135,153.31,153.24,2.4144]
[1718187168779,2.4134,153.31,153.24,2.4144]
[1718187168963,2.4136,153.3,153.24,2.4144]
[1718187169182,2.4134,153.31,153.25,2.4143]
[1718187169572,2.4133,153.32,153.26,2.4141]
[1718187169769,2.4133,153.32,153.25,2.4142]
[1718187169976,2.4133,153.32,153.24,20.0]
[1718187169977,2.4133,153.32,153.26,2.4141]
[1718187170186,24.6546,153.33,153.26,2.4141]
[1718187170690,2.4132,153.32,153.26,2.4141]
[1718187170870,2.4132,153.32,153.25,2.4142]
[1718187171076,2.4134,153.31,153.25,2.4142]
[1718187173761,22.2415,153.33,153.28,2.4138]
[1718187173967,22.2415,153.33,153.29,2.4136]
[1718187175291,22.2415,153.33,153.3,2.4135]
[1718187175492,15.9766,153.33,153.3,2.4135]
[1718187175786,15.9766,153.33,153.29,2.4136]
[1718187176669,15.9766,153.33,153.29,2.4135]
[1718187177197,15.9766,153.33,153.28,22.4137]
[1718187178095,15.9766,153.33,153.29,2.4137]
[1718187178771,15.9766,153.33,153.28,22.4138]
[1718187178970,15.9766,153.33,153.29,45.0]
[1718187179171,15.9766,153.33,153.28,22.4138]
[1718187179586,15.9766,153.33,153.29,2.4136]
[1718187180102,15.9766,153.33,153.28,22.4138]
[1718187180599,18.3898,153.33,153.28,20.0]
[1718187180776,18.3898,153.33,153.27,2.4139]
[1718187180978,2.4133,153.32,153.26,2.4141]
[1718187181179,2.4133,153.32,153.27,2.414]
[1718187182096,18.3897,153.33,153.27,22.414]
[1718187182398,9.0667,153.3,153.25,2.4142]
[1718187182596,9.0667,153.3,153.24,2.4144]
[1718187183504,6.6531,153.3,153.25,2.4143]
[1718187183688,6.6531,153.3,153.27,2.4139]
[1718187183886,9.0667,153.3,153.23,20.0]
[1718187184101,6.6531,153.3,153.25,2.4142]
[1718187184288,6.6531,153.3,153.26,2.4141]
[1718187184598,6.6531,153.3,153.26,2.414]
[1718187184904,6.6531,153.3,153.27,2.4139]
[1718187185900,6.6531,153.3,153.26,2.4141]
[1718187186098,6.6531,153.3,153.24,20.0]
[1718187186322,6.6531,153.3,153.23,4.8293]
[1718187186507,6.6531,153.3,153.25,2.4142]
[1718187187213,6.6531,153.3,153.26,2.4141]
[1718187187386,6.6531,153.3,153.24,20.0]
[1718187187586,9.0667,153.3,153.24,2.4145]
[1718187187811,2.4137,153.29,153.24,2.4145]
[1718187188496,6.6531,153.3,153.24,2.4145]
[1718187188497,9.0667,153.3,153.24,2.4145]
[1718187188986,8.18,153.28,153.25,2.4143]
[1718187189192,8.18,153.27,153.24,2.4144]
[1718187189705,8.18,153.26,153.23,2.4145]
[1718187190204,8.18,153.26,153.22,2.4147]
[1718187190387,8.18,153.25,153.22,2.4147]
[1718187191805,8.18,153.24,153.2,4.83]
[1718187192011,8.18,153.24,153.2,22.4151]
[1718187192192,8.18,153.24,153.19,2.4152]
[1718187192193,8.18,153.23,153.19,2.4152]
[1718187192385,8.18,153.23,153.2,2.4151]
[1718187192987,2.4143,153.25,153.2,2.4151]
[1718187193192,2.4143,153.25,153.19,2.4152]
[1718187193399,2.4145,153.24,153.19,2.4152]
[1718187193593,2.4145,153.24,153.18,2.4154]
[1718187194212,8.4622,153.24,153.18,2.4154]
[1718187194411,8.4622,153.24,153.17,20.0]
[1718187194600,8.4622,153.24,153.19,2.4152]
[1718187195097,6.0477,153.24,153.19,2.4152]
[1718187195302,6.0477,153.24,153.17,24.8311]
[1718187195303,6.0477,153.24,153.2,2.4151]
[1718187195619,6.0477,153.24,153.22,2.4147]
[1718187195914,6.0477,153.24,153.2,12.0755]
[1718187196118,6.0477,153.24,153.2,2.415]
[1718187196334,6.0477,153.24,153.21,2.4149]
[1718187196508,6.0477,153.24,153.22,2.4148]
[1718187196807,6.0477,153.24,153.19,12.0763]
[1718187197015,16.3179,153.27,153.24,2.4144]
[1718187197511,29.367,153.31,153.22,7.2444]
[1718187197725,2.4136,153.3,153.25,2.4142]
[1718187197931,15.3353,153.29,153.17,35.7807]
[1718187198237,2.4142,153.26,153.21,2.4148]
[1718187198600,4.8277,153.28,153.22,2.4148]
[1718187198908,4.8277,153.28,153.19,12.0763]
[1718187198909,2.4139,153.28,153.23,2.4146]
[1718187199495,17.7491,153.29,153.24,2.4145]
[1718187199698,15.3353,153.29,153.2,21.7354]
[1718187199921,2.414,153.28,153.21,20.0]
[1718187200118,2.414,153.28,153.22,2.4147]
[1718187200320,15.3353,153.29,153.23,2.4146]
[1718187200842,15.3353,153.29,153.22,2.4147]
[1718187200843,2.414,153.27,153.22,2.4147]
[1718187201121,2.414,153.27,153.21,20.0]
[1718187201122,2.4142,153.26,153.21,22.4149]
[1718187201424,2.4142,153.26,153.21,2.4149]
[1718187201727,2.4145,153.24,153.19,2.4152]
[1718187202102,18.1572,153.26,153.17,4.8309]
[1718187202420,15.3353,153.22,153.13,16.0425]
[1718187202603,17.7502,153.22,153.17,2.4156]
[1718187202923,2.415,153.21,153.16,2.4157]
[1718187203225,15.3353,153.22,153.14,4.832]
[1718187203226,15.3353,153.22,153.15,12.0795]
[1718187203431,15.3353,153.22,153.17,2.4156]
[1718187203432,17.7501,153.22,153.17,2.4156]
[1718187203607,15.3353,153.22,153.18,2.4154]
[1718187204323,15.3353,153.22,153.19,2.4152]
[1718187204904,15.3353,153.22,153.18,2.4153]
[1718187205219,15.3353,153.22,153.19,2.4152]
[1718187205629,15.3353,153.22,153.18,2.4153]
[1718187206026,15.3353,153.22,153.19,2.4152]
[1718187208331,15.3353,153.22,153.17,32.0778]
[1718187208513,15.3353,153.22,153.19,2.4152]
[1718187209627,15.3353,153.22,153.2,2.4151]
[1718187209820,15.3353,153.22,153.19,2.4152]
[1718187213527,15.3353,153.22,153.2,2.415]
[1718187214125,15.3353,153.22,153.19,2.4152]
[1718187214627,15.3353,153.22,153.2,2.4151]
[1718187214816,15.3353,153.22,153.19,2.4152]
[1718187215215,15.3353,153.22,153.2,2.4151]
[1718187215417,15.3353,153.22,153.19,2.4152]
[1718187215617,23.5153,153.22,153.18,2.4153]
[1718187216040,23.5153,153.22,153.19,2.4152]
[1718187216228,23.5153,153.22,153.18,2.4153]
[1718187217224,23.5153,153.22,153.19,2.4152]
[1718187217539,23.5153,153.22,153.18,2.4153]
[1718187217741,23.5153,153.22,153.19,2.4152]
[1718187218129,8.18,153.21,153.16,12.0787]
[1718187218318,8.18,153.2,153.17,2.4155]
[1718187218517,8.18,153.2,153.18,2.4154]
[1718187218740,8.18,153.2,153.17,2.4155]
[1718187218923,8.18,153.19,153.12,14.498]
[1718187219142,8.18,153.18,153.15,2.4159]
[1718187219318,8.18,153.18,153.14,2.4159]
[1718187219513,8.18,153.18,153.15,2.4159]
[1718187220540,6.3307,153.2,153.16,2.4157]
[1718187220736,8.18,153.18,153.15,2.4158]
[1718187220929,8.18,153.18,153.16,2.4157]
[1718187221132,8.18,153.18,153.15,2.4158]
[1718187221539,8.18,153.18,153.14,2.4159]
[1718187222244,8.18,153.18,153.15,2.4159]
[1718187223143,6.3307,153.2,153.16,2.4157]
[1718187223347,8.18,153.19,153.15,2.4158]
[1718187223529,6.3307,153.2,153.16,2.4157]
[1718187223732,8.18,153.19,153.16,2.4157]
[1718187224236,8.18,153.19,153.15,2.4158]
[1718187224758,14.5107,153.2,153.16,2.4157]
[1718187225427,6.3307,153.2,153.16,2.4157]
[1718187225747,14.5107,153.2,153.16,2.4157]
[1718187225943,17.7501,153.22,153.17,2.4154]
[1718187226363,15.3353,153.22,153.18,2.4153]
[1718187226542,15.3353,153.22,153.19,2.4152]
[1718187226927,15.3353,153.22,153.18,2.4153]
[1718187227827,8.18,153.23,153.19,2.4152]
[1718187229352,8.18,153.23,153.18,2.4153]
[1718187229550,2.4148,153.22,153.17,10.5955]
[1718187229845,8.18,153.22,153.19,2.4152]
[1718187230036,6.6307,153.24,153.2,2.415]
[1718187230233,6.6307,153.24,153.21,2.4149]
[1718187230440,8.18,153.25,153.21,2.4149]
[1718187231041,10.5944,153.25,153.2,2.415]
[1718187231751,2.4144,153.25,153.2,2.415]
[1718187232053,10.5944,153.25,153.2,2.415]
[1718187232434,10.5945,153.24,153.19,2.4152]
[1718187233052,2.4146,153.23,153.18,2.7553]
[1718187233257,2.4146,153.23,153.18,22.7553]
[1718187233466,10.5946,153.23,153.18,22.7553]
[1718187233646,8.18,153.23,153.19,2.4152]
[1718187233845,10.5947,153.23,153.18,22.7553]
[1718187234053,8.18,153.22,153.16,8.35]
[1718187234232,10.5949,153.22,153.17,22.4155]
[1718187234432,10.5949,153.22,153.18,2.4154]
[1718187234761,8.18,153.21,153.17,2.4155]
[1718187235336,8.18,153.21,153.18,2.4154]
[1718187236230,8.18,153.21,153.17,2.4155]
[1718187236435,2.4148,153.22,153.17,2.4155]
[1718187236659,8.18,153.2,153.17,2.4155]
[1718187237646,8.18,153.19,153.16,2.4157]
[1718187238163,8.18,153.17,153.13,2.4161]
[1718187238342,8.18,153.17,153.15,2.4159]
[1718187238542,18.4833,153.2,153.13,16.9133]
[1718187238838,8.18,153.18,153.16,2.4157]
[1718187239244,8.18,153.18,153.15,2.4158]
[1718187239446,8.18,153.18,153.14,2.4159]
[1718187239773,8.18,153.19,153.15,2.4159]
[1718187239950,8.18,153.19,153.16,2.4157]
[1718187240669,16.0681,153.2,153.17,2.4155]
[1718187240846,24.2481,153.2,153.17,2.4155]
[1718187241773,24.2481,153.2,153.16,2.4156]
[1718187242260,26.6632,153.2,153.15,2.4158]
[1718187242465,8.18,153.19,153.15,2.4158]
[1718187242644,24.2481,153.2,153.16,2.4157]
[1718187244066,8.18,153.18,153.12,21.9169]
[1718187244271,8.18,153.18,153.15,2.4159]
[1718187244468,18.4833,153.2,153.15,2.4159]
[1718187244670,16.0681,153.2,153.17,2.4154]
[1718187245273,24.2481,153.2,153.15,8.18]
[1718187245465,10.5953,153.19,153.14,2.4159]
[1718187246048,10.5955,153.18,153.13,22.4161]
[1718187246250,8.18,153.18,153.14,2.416]
[1718187246448,8.18,153.17,153.13,2.4161]
[1718187246663,2.4153,153.19,153.09,20.83]
[1718187246664,21.7381,153.19,153.09,20.83]
[1718187246860,8.18,153.15,153.12,2.4163]
[1718187247166,8.18,153.15,153.13,2.4162]
[1718187247771,8.18,153.16,153.13,2.4162]
[1718187248758,8.18,153.17,153.15,2.4158]
[1718187248964,8.18,153.17,153.14,2.4159]
[1718187249148,8.18,153.17,153.13,2.4161]
[1718187249588,16.0681,153.2,153.12,20.2615]
[1718187249756,8.18,153.17,153.14,2.4159]
[1718187250545,16.0681,153.2,153.15,2.4159]
[1718187250749,8.18,153.17,153.14,2.416]
[1718187251057,8.18,153.17,153.13,2.4161]
[1718187251464,8.18,153.17,153.14,2.416]
[1718187251665,8.18,153.17,153.13,2.4161]
[1718187251845,7.2466,153.18,153.08,14.5018]
[1718187252051,8.18,153.14,153.09,20.0]
[1718187252358,8.18,153.15,153.11,2.4165]
[1718187252659,10.5959,153.15,153.11,2.4165]
[1718187252849,8.18,153.14,153.1,2.4166]
[1718187253548,16.9085,153.18,153.09,8.18]
[1718187253549,21.7396,153.18,153.09,8.18]
[1718187253753,8.18,153.14,153.11,2.4164]
[1718187254365,8.18,153.14,153.12,2.4163]
[1718187254552,8.18,153.13,153.09,2.4168]
[1718187255478,8.18,153.12,153.09,2.4167]
[1718187255658,8.18,153.13,153.11,2.4164]
[1718187256274,8.18,153.13,153.08,28.35]
[1718187256571,8.18,153.13,153.09,2.4167]
[1718187256952,8.18,153.12,153.09,2.4167]
[1718187257450,8.18,153.11,153.05,15.4322]
[1718187257648,8.18,153.11,153.08,2.417]
[1718187258064,8.18,153.11,153.09,2.4168]
[1718187258581,8.6847,153.16,153.08,9.6678]
[1718187258753,8.18,153.13,153.1,2.4166]
[1718187259677,8.18,153.13,153.09,0.17]
[1718187259678,8.18,153.13,153.11,2.4165]
[1718187260062,8.18,153.13,153.06,15.4821]
[1718187260063,8.18,153.12,153.07,4.8341]
[1718187260277,8.18,153.12,153.08,2.4169]
[1718187260658,2.4166,153.11,153.07,30.5971]
[1718187260959,8.18,153.11,153.07,2.4171]
[1718187261270,10.5965,153.11,153.07,2.4171]
[1718187261465,8.18,153.11,153.07,2.4171]
[1718187261979,8.18,153.11,153.08,2.417]
[1718187262277,2.4163,153.13,153.08,2.4168]
[1718187262458,10.5964,153.12,153.08,2.4168]
[1718187262784,8.18,153.09,153.05,2.4174]
[1718187262964,8.18,153.09,153.05,22.4174]
[1718187264584,8.18,153.09,153.06,2.4173]
[1718187265171,10.5968,153.09,153.05,2.4174]
[1718187265376,7.2509,153.09,153.02,0.870775]
[1718187265577,8.18,153.06,153.02,0.870775]
[1718187265888,16.9171,153.1,153.02,0.870775]
[1718187265889,10.5971,153.08,153.02,9.050775]
[1718187266188,8.18,153.08,153.04,2.4175]
[1718187266363,8.18,153.08,153.02,9.050775]
[1718187266565,24.4266,153.11,153.04,12.088]
[1718187266899,22.01,153.11,153.07,2.4171]
[1718187267062,8.18,153.1,153.07,2.4171]
[1718187267257,132.72,153.2,153.08,8.18]
[1718187267258,22.0087,153.15,153.08,8.18]
[1718187267461,22.0087,153.15,153.11,2.4165]
[1718187267462,8.18,153.13,153.11,2.4165]
[1718187267766,30.1887,153.15,153.11,2.4165]
[1718187268167,8.18,153.14,153.09,2.4168]
[1718187268366,2.4163,153.13,153.08,2.417]
[1718187268576,24.4247,153.15,153.1,2.4165]
[1718187268781,32.6047,153.15,153.1,2.4165]
[1718187268976,8.18,153.14,153.1,2.4166]
[1718187269180,15.4409,153.15,153.11,2.4165]
[1718187269382,2.4155,153.18,153.13,2.4161]
[1718187269577,8.18,153.17,153.13,2.4161]
[1718187270394,2.416,153.15,153.1,55.7666]
[1718187270558,2.4156,153.17,153.12,10.5963]
[1718187270761,10.5956,153.17,153.12,10.5963]
[1718187270960,2.4158,153.16,153.11,2.5865]
[1718187271186,2.4158,153.16,153.11,10.7665]
[1718187271589,2.4159,153.15,153.11,0.17]
[1718187271890,10.5958,153.16,153.11,10.7665]
[1718187272065,10.5958,153.16,153.11,2.5865]
[1718187272571,2.4164,153.12,153.07,2.4171]
[1718187272773,8.18,153.12,153.07,8.18]
[1718187273090,8.18,153.12,153.08,2.4169]
[1718187273273,2.4163,153.13,153.08,2.4169]
[1718187273469,8.18,153.12,153.08,2.4169]
[1718187273685,8.18,153.14,153.1,2.4167]
[1718187273899,2.4158,153.16,153.11,2.4164]
[1718187274065,10.5958,153.16,153.11,2.4164]
[1718187274395,8.18,153.15,153.11,2.4164]
[1718187274570,2.4156,153.17,153.12,2.4162]
[1718187274770,8.18,153.15,153.11,2.4164]
[1718187275204,8.18,153.15,153.09,2.4167]
[1718187275507,8.18,153.11,153.08,2.417]
[1718187275669,8.18,153.13,153.08,13.014]
[1718187275871,2.416,153.15,153.1,2.4166]
[1718187276066,8.18,153.14,153.08,13.014]
[1718187276274,32.1961,153.19,153.1,8.18]
[1718187276490,8.18,153.15,153.09,8.18]
[1718187276668,8.18,153.15,153.11,2.4165]
[1718187277298,10.5959,153.15,153.1,10.7666]
[1718187277470,8.18,153.14,153.04,30.9687]
[1718187277788,2.4164,153.12,153.07,2.4171]